fUSD/lending_fUSD_20240629
["ID","MTS","AMOUNT","RATE_DAILY","PERIOD"]
[330623169,1719639042319,-151.0,0.00015,2]
[330623170,1719639042328,-151.0,0.00015,2]
[330623171,1719639042337,-151.0,0.00015,2]
[330623172,1719639042347,-151.0,0.00015,2]
[330623173,1719639042356,-150.0,0.00015,15]
[330623174,1719639042366,-151.0,0.00015,2]
[330623175,1719639042376,-328.869356,0.00015,2]
[330623176,1719639042386,-328.869356,0.00015,2]
[330623177,1719639042396,-222.181621,0.00015,2]
[330623178,1719639042405,-151.836569,0.00015,2]
[330623179,1719639042415,-151.0,0.00015,2]
[330623180,1719639042424,-151.0,0.00015,2]
[330623181,1719639042433,-151.0,0.00015,2]
[330623182,1719639042443,-151.703353,0.00015,2]
[330623183,1719639042453,-467.209369,0.00015,2]
[330623184,1719639042463,-151.0,0.00015,2]
[330623185,1719639042472,-1557.955196,0.00015,2]
[330623186,1719639042482,-467.209369,0.00015,2]
[330623187,1719639042492,-151.0,0.00015,2]
[330623188,1719639042501,-1557.955196,0.00015,2]
[330623189,1719639042510,-2000.0,0.00015,2]
[330623190,1719639042519,-173.72078,0.00015,2]
[330623191,1719639042529,-200.0,0.00015,2]
[330623192,1719639042538,-277.38842,0.00015,2]
[330623193,1719639042547,-277.38842,0.00015,2]
[330623194,1719639042557,-151.0,0.00015,2]
[330623195,1719639042567,-184.263492,0.00015,2]
[330623196,1719639042576,-184.263492,0.00015,2]
[330623197,1719639042585,-1000.0,0.00015014,2]
[330623198,1719639042594,-600.0,0.00015044,2]
[330623199,1719639042603,-900.0,0.00015044,2]
[330623200,1719639042612,-567.17,0.00015068,2]
[330623201,1719639042621,-152.14,0.00015068,2]
[330623202,1719639042630,-250.0,0.00015148,2]
[330623203,1719639042638,-2000.0,0.0001515,2]
[330623204,1719639042647,-200.0,0.0001515,2]
[330623205,1719639042657,-2000.0,0.0001515,2]
[330623206,1719639042666,-200.0,0.0001515,2]
[330623207,1719639042676,-2000.0,0.0001515,2]
[330623208,1719639042685,-200.0,0.0001515,2]
[330623209,1719639042695,-2000.0,0.0001515,2]
[330623210,1719639042704,-200.0,0.0001515,2]
[330623211,1719639042714,-227.02046916,0.00015287,2]
[330623212,1719639042724,-11755.0,0.000153,3]
[330623213,1719639042733,-2000.0,0.00015301,2]
[330623214,1719639042743,-200.0,0.00015301,2]
[330623215,1719639042752,-2000.0,0.00015301,2]
[330623216,1719639042762,-200.0,0.00015301,2]
[330623217,1719639042772,-2000.0,0.00015301,2]
[330623218,1719639042781,-200.0,0.00015301,2]
[330623219,1719639042791,-2000.0,0.00015301,2]
[330623220,1719639042801,-200.0,0.00015301,2]
[330623221,1719639042810,-2000.0,0.00015455,2]
[330623222,1719639042820,-200.0,0.00015455,2]
[330623223,1719639042830,-2000.0,0.00015455,2]
[330623224,1719639042840,-200.0,0.00015455,2]
[330623225,1719639042850,-2000.0,0.00015455,2]
[330623226,1719639042859,-200.0,0.00015455,2]
[330623227,1719639042869,-2000.0,0.00015455,2]
[330623228,1719639042879,-200.0,0.00015455,2]
[330623229,1719639042889,-1901.92234067,0.00015535,2]
[330623230,1719639042899,-1300.0,0.00015592,2]
[330623231,1719639042908,-1000.0,0.00015592,2]
[330623232,1719639042918,-11755.0,0.000156,5]
[330623233,1719639042928,-2000.0,0.00015609,2]
[330623234,1719639042938,-200.0,0.00015609,2]
[330623235,1719639042948,-2000.0,0.00015609,2]
[330623236,1719639042962,-200.0,0.00015609,2]
[330623237,1719639042976,-2000.0,0.00015609,2]
[330623238,1719639042990,-200.0,0.00015609,2]
[330623239,1719639043005,-1229.01184643,0.00015609,2]
[330623240,1719639043016,-200.0,0.00015609,2]
[330623241,1719639043028,-218.408832,0.00015616,2]
[330623242,1719639043042,-250.80647,0.0001563,2]
[330623243,1719639043055,-350.0,0.00015696,2]
[330623244,1719639043069,-567.17,0.00015753,2]
[330623245,1719639043082,-7468.2579719,0.00015801,2]
[330623246,1719639043094,-700.0,0.00015866,2]
[330623247,1719639043109,-3775.55,0.00016116,2]
[330623248,1719639043122,-450.0,0.00016244,2]
[330623249,1719639043136,-250.80647,0.0001625,2]
[330623250,1719639043148,-1901.92234067,0.00016352,2]
[330623251,1719639043160,-1300.0,0.00016414,2]
[330623252,1719639043173,-1000.0,0.00016414,2]
[330623254,1719639043185,-218.408832,0.00016438,2]
[330623257,1719639043199,-567.17,0.00016438,2]
[330623258,1719639043216,-173.38,0.00016503,2]
[330623259,1719639043228,-1000.0,0.00016683,2]
[330623260,1719639043239,-600.0,0.00016688,2]
[330623261,1719639043251,-900.0,0.00016688,2]
[330623262,1719639043262,-550.0,0.00016792,2]
[330623263,1719639043273,-7468.2579719,0.00016801,2]
[330623264,1719639043287,-250.80648,0.0001688,2]
[330623265,1719639043299,-151.0,0.00016898,2]
[330623266,1719639043313,-151.0,0.00016898,2]
[330623267,1719639043325,-151.0,0.00016898,2]
[330623268,1719639043338,-858.595442,0.00016898,2]
[330623269,1719639043352,-151.0,0.00016898,2]
[330623270,1719639043365,-858.595442,0.00016898,2]
[330623272,1719639043376,-151.0,0.00016898,2]
[330623273,1719639043387,-151.0,0.00016898,2]
[330623274,1719639043397,-151.0,0.00016898,2]
[330623275,1719639043408,-200.0,0.00016975,2]
[330623276,1719639043421,-151.0,0.00017059,2]
[330623277,1719639043434,-151.0,0.00017059,2]
[330623278,1719639043447,-151.0,0.00017059,2]
[330623279,1719639043458,-151.0,0.00017059,2]
[330623280,1719639043469,-151.0,0.00017178,2]
[330623281,1719639043482,-151.0,0.00017178,2]
[330623282,1719639043495,-151.0,0.00017178,2]
[330623283,1719639043508,-151.0,0.00017178,2]
[330623284,1719639043519,-151.0,0.00017178,2]
[330623285,1719639043530,-1557.955196,0.00017178,2]
[330623286,1719639043541,-151.0,0.00017178,2]
[330623287,1719639043552,-1557.955196,0.00017178,2]
[330623288,1719639043564,-277.38842,0.00017178,2]
[330623289,1719639043575,-277.38842,0.00017178,2]
[330623290,1719639043587,-274.035484,0.00017178,2]
[330623291,1719639043598,-407.69,0.00017178,2]
[330623292,1719639043618,-501.65877564,0.00017199,2]
[330623293,1719639043630,-218.408832,0.0001726,2]
[330623294,1719639043641,-2495.0,0.000173,2]
[330623295,1719639043653,-151.0,0.000173,2]
[330623296,1719639043664,-151.0,0.000173,2]
[330623297,1719639043676,-151.0,0.000173,2]
[330623298,1719639043688,-151.0,0.000173,2]
[330623299,1719639043700,-151.0,0.000173,2]
[330623300,1719639043711,-343.354288,0.000173,2]
[330623301,1719639043723,-343.354288,0.000173,2]
[330623302,1719639043735,-151.0,0.000173,2]
[330623303,1719639043747,-151.0,0.000173,2]
[330623304,1719639043760,-151.0,0.000173,2]
[330623305,1719639043772,-184.263492,0.000173,2]
[330623306,1719639043784,-184.263492,0.000173,2]
[330623307,1719639043797,-650.0,0.0001734,2]
[330623308,1719639043808,-700.0,0.0001751,2]
[330623309,1719639043821,-649.0,0.000177,2]
[330623310,1719639043834,-151.0,0.00017728,2]
[330623311,1719639043845,-151.0,0.00017728,2]
[330623312,1719639043857,-151.0,0.00017728,2]
[330623313,1719639043870,-600.0,0.00017784,2]
[330623314,1719639043882,-900.0,0.00017784,2]
[330623315,1719639043894,-7468.2579719,0.00017802,2]
[330623316,1719639043906,-157.604784,0.00017802,2]
[330623317,1719639043918,-151.0,0.00017802,2]
[330623318,1719639043929,-151.0,0.00017802,2]
[330623319,1719639043941,-167.783691,0.00017802,2]
[330623320,1719639043954,-250.956894,0.00017802,2]
[330623321,1719639043966,-250.956894,0.00017802,2]
[330623322,1719639043977,-151.0,0.00017802,2]
[330623323,1719639043989,-151.0,0.00017802,2]
[330623324,1719639044001,-151.0,0.00017802,2]
[330623325,1719639044013,-160.099108,0.00017802,2]
[330623326,1719639044024,-247.713216,0.00017802,2]
[330623327,1719639044036,-247.713216,0.00017802,2]
[330623328,1719639044048,-227.532762,0.00017802,2]
[330623329,1719639044060,-151.0,0.00017802,2]
[330623330,1719639044071,-151.0,0.00017802,2]
[330623331,1719639044083,-252.218936,0.00017802,2]
[330623332,1719639044095,-227.532762,0.00017802,2]
[330623333,1719639044106,-306.780135,0.00017802,2]
[330623334,1719639044117,-306.780135,0.00017802,2]
[330623335,1719639044128,-151.0,0.00017802,2]
[330623336,1719639044140,-339.761237,0.00017802,2]
[330623337,1719639044151,-339.761237,0.00017802,2]
[330623338,1719639044163,-452.29037913,0.00017888,2]
[330623339,1719639044174,-253.825932,0.00017986,2]
[330623340,1719639044185,-151.0,0.00017986,2]
[330623341,1719639044196,-152.184073,0.00017986,2]
[330623342,1719639044211,-253.825932,0.00017986,2]
[330623343,1719639044222,-152.888849,0.00017986,2]
[330623344,1719639044238,-151.0,0.00017986,2]
[330623345,1719639044249,-151.0,0.00017986,2]
[330623346,1719639044260,-151.0,0.00017986,2]
[330623347,1719639044271,-151.0,0.00017986,2]
[330623348,1719639044282,-328.869356,0.00017986,2]
[330623349,1719639044295,-328.869356,0.00017986,2]
[330623350,1719639044306,-467.209369,0.00017986,2]
[330623351,1719639044316,-467.209369,0.00017986,2]
[330623352,1719639044328,-151.0,0.00018051,2]
[330623353,1719639044340,-151.0,0.00018051,2]
[330623354,1719639044351,-151.0,0.00018051,2]
[330623355,1719639044363,-151.0,0.00018051,2]
[330623356,1719639044374,-151.0,0.00018051,2]
[330623357,1719639044385,-343.9,0.00018055,2]
[330623358,1719639044396,-1300.0,0.00018058,2]
[330623359,1719639044407,-1000.0,0.00018058,2]
[330623360,1719639044418,-218.408832,0.00018082,2]
[330623361,1719639044429,-619.709,0.00018156,2]
[330623362,1719639044440,-505.066,0.00018156,2]
[330623363,1719639044451,-823.236,0.00018156,2]
[330623364,1719639044463,-10000.0,0.00018275,2]
[330623365,1719639044474,-1000.0,0.00018351,2]
[330623366,1719639044484,-182.0,0.0001857,2]
[330623367,1719639044495,-700.0,0.00018606,2]
[330623368,1719639044506,-151.0,0.00018651,2]
[330623369,1719639044517,-197.59758404,0.0001878,2]
[330623370,1719639044528,-7468.2579719,0.00018802,2]
[330623371,1719639044539,-537.93141164,0.00018864,2]
[330623372,1719639044551,-600.0,0.0001888,2]
[330623373,1719639044561,-900.0,0.0001888,2]
[330623374,1719639044572,-225.0,0.000189,2]
[330623375,1719639044583,-356.0,0.000189,2]
[330623376,1719639044595,-1000.0,0.000189,2]
[330623377,1719639044606,-153.68,0.000189,2]
[330623378,1719639044616,-153.68,0.000189,2]
[330623379,1719639044628,-153.68,0.000189,2]
[330623380,1719639044639,-153.68,0.000189,2]
[330623381,1719639044650,-218.408832,0.00018904,2]
[330623382,1719639044660,-300.0,0.00019,2]
[330623383,1719639044671,-306.85571943,0.00019153,2]
[330623384,1719639044682,-1300.0,0.00019154,2]
[330623385,1719639044693,-1000.0,0.00019154,2]
[330623386,1719639044707,-571.27337889,0.00019178,2]
[330623387,1719639044718,-160.08932173,0.00019178,2]
[330623388,1719639044730,-461.80321944,0.00019178,2]
[330623389,1719639044742,-232.74163819,0.00019178,2]
[330623390,1719639044753,-500.0,0.00019178,2]
[330623391,1719639044764,-350.73325343,0.00019178,2]
[330623392,1719639044775,-250.0,0.00019178,2]
[330623393,1719639044786,-556.876114,0.00019178,2]
[330623394,1719639044797,-556.876114,0.00019178,2]
[330623395,1719639044809,-556.876114,0.00019178,2]
[330623396,1719639044820,-556.876114,0.00019178,2]
[330623397,1719639044832,-556.876114,0.00019178,2]
[330623398,1719639044843,-556.876114,0.00019178,2]
[330623399,1719639044854,-534.09,0.00019178,2]
[330623400,1719639044866,-152.0,0.00019226,3]
[330623401,1719639044877,-1422.42,0.00019253,2]
[330623402,1719639044888,-168.577,0.00019253,2]
[330623403,1719639044899,-189.898,0.00019253,2]
[330623404,1719639044910,-407.69,0.00019442,2]
[330623405,1719639044920,-700.0,0.00019702,2]
[330623406,1719639044931,-218.408832,0.00019726,2]
[330623407,1719639044943,-7468.2579719,0.00019803,2]
[330623408,1719639044953,-1468.97517007,0.00019833,2]
[330623409,1719639044964,-150.0,0.00019933,2]
[330623410,1719639044975,-150.0,0.00019933,2]
[330623411,1719639044986,-150.0,0.00019933,2]
[330623412,1719639044997,-152.729,0.00019933,2]
[330623413,1719639045008,-150.0,0.00019933,2]
[330623414,1719639045020,-600.0,0.00019976,2]
[330623415,1719639045032,-900.0,0.00019976,2]
[330623418,1719639045044,-2103.0416829,0.0002,2]
[330623420,1719639045061,-358.01012826,0.0002,2]
[330623423,1719639045074,-755.0,0.0002,2]
[330623425,1719639045087,-303.55501634,0.0002,2]
[330623427,1719639045098,-155.0,0.0002,2]
[330623430,1719639045109,-1363.54262393,0.0002,3]
[330623434,1719639045141,-11420.99768788,0.0002,3]
[330623437,1719639045152,-1274.88625925,0.0002,2]
[330623439,1719639045163,-257.0,0.0002,2]
[330623441,1719639045174,-151.50824087,0.0002,2]
[330623443,1719639045185,-6108.50225746,0.0002,2]
[330623445,1719639045195,-322.917232,0.0002,2]
[330623447,1719639045207,-1000.0,0.00020019,2]
[330623450,1719639045220,-152.0,0.00020041,4]
[330623452,1719639045230,-150.0,0.0002011,2]
[330623454,1719639045241,-716.21074661,0.0002012,2]
[330623456,1719639045252,-2022.43243129,0.000202,2]
[330623458,1719639045262,-500.0,0.000202,2]
[330623460,1719639045273,-500.0,0.000202,2]
[330623462,1719639045284,-500.0,0.000202,2]
[330623465,1719639045296,-500.0,0.000202,2]
[330623467,1719639045307,-500.0,0.000202,2]
[330623469,1719639045318,-500.0,0.000202,2]
[330623471,1719639045328,-500.0,0.000202,2]
[330623473,1719639045339,-500.0,0.000202,2]
[330623475,1719639045349,-500.0,0.000202,2]
[330623477,1719639045360,-500.0,0.000202,2]
[330623480,1719639045371,-500.0,0.000202,2]
[330623482,1719639045382,-500.0,0.000202,2]
[330623484,1719639045393,-500.0,0.000202,2]
[330623486,1719639045404,-500.0,0.000202,2]
[330623488,1719639045415,-500.0,0.000202,2]
[330623491,1719639045426,-500.0,0.000202,2]
[330623493,1719639045438,-500.0,0.000202,2]
[330623495,1719639045449,-500.0,0.000202,2]
[330623497,1719639045461,-500.0,0.000202,2]
[330623500,1719639045472,-500.0,0.000202,2]
[330623502,1719639045484,-500.0,0.000202,2]
[330623504,1719639045495,-500.0,0.000202,2]
[330623506,1719639045506,-500.0,0.000202,2]
[330623509,1719639045517,-500.0,0.000202,2]
[330623511,1719639045528,-500.0,0.000202,2]
[330623513,1719639045540,-500.0,0.000202,2]
[330623515,1719639045552,-500.0,0.000202,2]
[330623517,1719639045563,-500.0,0.000202,2]
[330623520,1719639045575,-500.0,0.000202,2]
[330623522,1719639045587,-500.0,0.000202,2]
[330623524,1719639045598,-500.0,0.000202,2]
[330623526,1719639045609,-500.0,0.000202,2]
[330623528,1719639045620,-500.0,0.000202,2]
[330623531,1719639045631,-500.0,0.000202,2]
[330623533,1719639045643,-500.0,0.000202,2]
[330623535,1719639045654,-500.0,0.000202,2]
[330623537,1719639045665,-500.0,0.000202,2]
[330623540,1719639045676,-500.0,0.000202,2]
[330623542,1719639045687,-500.0,0.000202,2]
[330623544,1719639045698,-500.0,0.000202,2]
[330623546,1719639045711,-500.0,0.000202,2]
[330623548,1719639045721,-500.0,0.000202,2]
[330623551,1719639045732,-500.0,0.000202,2]
[330623553,1719639045744,-500.0,0.000202,2]
[330623555,1719639045756,-500.0,0.000202,2]
[330623557,1719639045768,-500.0,0.000202,2]
[330623559,1719639045779,-500.0,0.000202,2]
[330623562,1719639045791,-500.0,0.000202,2]
[330623564,1719639045805,-500.0,0.000202,2]
[330623566,1719639045817,-500.0,0.000202,2]
[330623568,1719639045828,-500.0,0.000202,2]
[330623571,1719639045840,-500.0,0.000202,2]
[330623573,1719639045852,-500.0,0.000202,2]
[330623575,1719639045864,-500.0,0.000202,2]
[330623577,1719639045876,-500.0,0.000202,2]
[330623579,1719639045887,-500.0,0.000202,2]
[330623582,1719639045898,-500.0,0.000202,2]
[330623584,1719639045910,-500.0,0.000202,2]
[330623586,1719639045922,-500.0,0.000202,2]
[330623588,1719639045933,-500.0,0.000202,2]
[330623590,1719639045944,-500.0,0.000202,2]
[330623593,1719639045956,-500.0,0.000202,2]
[330623595,1719639045967,-500.0,0.000202,2]
[330623597,1719639045979,-500.0,0.000202,2]
[330623599,1719639045989,-500.0,0.000202,2]
[330623602,1719639046000,-500.0,0.000202,2]
[330623604,1719639046012,-500.0,0.000202,2]
[330623606,1719639046023,-500.0,0.000202,2]
[330623608,1719639046036,-500.0,0.000202,2]
[330623611,1719639046048,-500.0,0.000202,2]
[330623613,1719639046059,-500.0,0.000202,2]
[330623615,1719639046069,-500.0,0.000202,2]
[330623617,1719639046081,-500.0,0.000202,2]
[330623619,1719639046092,-500.0,0.000202,2]
[330623621,1719639046103,-500.0,0.000202,2]
[330623624,1719639046114,-500.0,0.000202,2]
[330623626,1719639046124,-500.0,0.000202,2]
[330623628,1719639046135,-500.0,0.000202,2]
[330623630,1719639046145,-500.0,0.000202,2]
[330623632,1719639046156,-500.0,0.000202,2]
[330623635,1719639046167,-500.0,0.000202,2]
[330623637,1719639046178,-500.0,0.000202,2]
[330623639,1719639046190,-500.0,0.000202,2]
[330623641,1719639046201,-500.0,0.000202,2]
[330623644,1719639046218,-500.0,0.000202,2]
[330623646,1719639046229,-500.0,0.000202,2]
[330623648,1719639046242,-500.0,0.000202,2]
[330623650,1719639046253,-500.0,0.000202,2]
[330623652,1719639046264,-500.0,0.000202,2]
[330623655,1719639046276,-500.0,0.000202,2]
[330623657,1719639046287,-500.0,0.000202,2]
[330623659,1719639046298,-500.0,0.000202,2]
[330623661,1719639046309,-500.0,0.000202,2]
[330623663,1719639046320,-500.0,0.000202,2]
[330623666,1719639046331,-500.0,0.000202,2]
[330623668,1719639046342,-500.0,0.000202,2]
[330623670,1719639046354,-500.0,0.000202,2]
[330623672,1719639046365,-500.0,0.000202,2]
[330623675,1719639046376,-500.0,0.000202,2]
[330623677,1719639046387,-500.0,0.000202,2]
[330623679,1719639046398,-500.0,0.000202,2]
[330623681,1719639046409,-500.0,0.000202,2]
[330623683,1719639046419,-500.0,0.000202,2]
[330623686,1719639046430,-500.0,0.000202,2]
[330623688,1719639046441,-500.0,0.000202,2]
[330623690,1719639046451,-500.0,0.000202,2]
[330623692,1719639046465,-500.0,0.000202,2]
[330623694,1719639046476,-500.0,0.000202,2]
[330623697,1719639046486,-500.0,0.000202,2]
[330623699,1719639046498,-500.0,0.000202,2]
[330623701,1719639046509,-500.0,0.000202,2]
[330623703,1719639046520,-500.0,0.000202,2]
[330623705,1719639046531,-500.0,0.000202,2]
[330623708,1719639046543,-500.0,0.000202,2]
[330623710,1719639046555,-500.0,0.000202,2]
[330623712,1719639046566,-500.0,0.000202,2]
[330623714,1719639046576,-500.0,0.000202,2]
[330623716,1719639046586,-500.0,0.000202,2]
[330623719,1719639046597,-500.0,0.000202,2]
[330623721,1719639046608,-500.0,0.000202,2]
[330623723,1719639046619,-500.0,0.000202,2]
[330623725,1719639046630,-500.0,0.000202,2]
[330623727,1719639046641,-500.0,0.000202,2]
[330623730,1719639046652,-500.0,0.000202,2]
[330623732,1719639046662,-500.0,0.000202,2]
[330623734,1719639046674,-500.0,0.000202,2]
[330623736,1719639046684,-500.0,0.000202,2]
[330623739,1719639046696,-500.0,0.000202,2]
[330623741,1719639046708,-500.0,0.000202,2]
[330623743,1719639046718,-500.0,0.000202,2]
[330623745,1719639046729,-500.0,0.000202,2]
[330623748,1719639046740,-500.0,0.000202,2]
[330623750,1719639046751,-500.0,0.000202,2]
[330623752,1719639046763,-500.0,0.000202,2]
[330623754,1719639046775,-500.0,0.000202,2]
[330623757,1719639046786,-500.0,0.000202,2]
[330623759,1719639046797,-500.0,0.000202,2]
[330623761,1719639046808,-500.0,0.000202,2]
[330623763,1719639046819,-500.0,0.000202,2]
[330623765,1719639046831,-500.0,0.000202,2]
[330623768,1719639046843,-500.0,0.000202,2]
[330623770,1719639046855,-500.0,0.000202,2]
[330623772,1719639046867,-500.0,0.000202,2]
[330623774,1719639046879,-500.0,0.000202,2]
[330623776,1719639046890,-500.0,0.000202,2]
[330623779,1719639046903,-500.0,0.000202,2]
[330623781,1719639046915,-500.0,0.000202,2]
[330623783,1719639046926,-500.0,0.000202,2]
[330623785,1719639046937,-500.0,0.000202,2]
[330623787,1719639046949,-500.0,0.000202,2]
[330623836,1719639047765,-500.0,0.000202,2]
[330623837,1719639047787,-500.0,0.000202,2]
[330623838,1719639047816,-500.0,0.000202,2]
[330623839,1719639047835,-500.0,0.000202,2]
[330623840,1719639047845,-500.0,0.000202,2]
[330623841,1719639047855,-500.0,0.000202,2]
[330623842,1719639047865,-500.0,0.000202,2]
[330623843,1719639047874,-500.0,0.000202,2]
[330623844,1719639047884,-500.0,0.000202,2]
[330623845,1719639047893,-500.0,0.000202,2]
[330623846,1719639047903,-500.0,0.000202,2]
[330623847,1719639047912,-500.0,0.000202,2]
[330623848,1719639047921,-500.0,0.000202,2]
[330623849,1719639047931,-500.0,0.000202,2]
[330623850,1719639047940,-500.0,0.000202,2]
[330623851,1719639047950,-500.0,0.000202,2]
[330623852,1719639047961,-500.0,0.000202,2]
[330623853,1719639047971,-500.0,0.000202,2]
[330623854,1719639047980,-500.0,0.000202,2]
[330623855,1719639047990,-500.0,0.000202,2]
[330623856,1719639047999,-500.0,0.000202,2]
[330623857,1719639048011,-500.0,0.000202,2]
[330623858,1719639048020,-500.0,0.000202,2]
[330623859,1719639048029,-500.0,0.000202,2]
[330623860,1719639048039,-500.0,0.000202,2]
[330623861,1719639048049,-500.0,0.000202,2]
[330623862,1719639048059,-500.0,0.000202,2]
[330623863,1719639048068,-500.0,0.000202,2]
[330623864,1719639048078,-500.0,0.000202,2]
[330623865,1719639048087,-500.0,0.000202,2]
[330623866,1719639048097,-500.0,0.000202,2]
[330623867,1719639048106,-500.0,0.000202,2]
[330623868,1719639048115,-500.0,0.000202,2]
[330623869,1719639048125,-500.0,0.000202,2]
[330623870,1719639048135,-500.0,0.000202,2]
[330623871,1719639048144,-500.0,0.000202,2]
[330623872,1719639048154,-500.0,0.000202,2]
[330623873,1719639048164,-500.0,0.000202,2]
[330623874,1719639048173,-500.0,0.000202,2]
[330623875,1719639048186,-500.0,0.000202,2]
[330623876,1719639048196,-500.0,0.000202,2]
[330623877,1719639048208,-500.0,0.000202,2]
[330623878,1719639048222,-500.0,0.000202,2]
[330623879,1719639048231,-500.0,0.000202,2]
[330623880,1719639048241,-500.0,0.000202,2]
[330623881,1719639048251,-500.0,0.000202,2]
[330623882,1719639048260,-51.79252782,0.000202,2]
[330623883,1719639048279,-448.20747218,0.000202,2]
[330623884,1719639048289,-93.44537353,0.000202,2]
[330623885,1719639048323,-406.55462647,0.000202,2]
[330623886,1719639048332,-500.0,0.000202,2]
[330623887,1719639048341,-500.0,0.000202,2]
[330623888,1719639048351,-500.0,0.000202,2]
[330623889,1719639048360,-500.0,0.000202,2]
[330623890,1719639048369,-500.0,0.000202,2]
[330623891,1719639048379,-500.0,0.000202,2]
[330623892,1719639048388,-500.0,0.000202,2]
[330623893,1719639048397,-500.0,0.000202,2]
[330623894,1719639048406,-500.0,0.000202,2]
[330623895,1719639048415,-500.0,0.000202,2]
[330623896,1719639048425,-500.0,0.000202,2]
[330623897,1719639048434,-500.0,0.000202,2]
[330623898,1719639048443,-500.0,0.000202,2]
[330623899,1719639048452,-500.0,0.000202,2]
[330623900,1719639048463,-500.0,0.000202,2]
[330623901,1719639048473,-500.0,0.000202,2]
[330623902,1719639048482,-500.0,0.000202,2]
[330623903,1719639048492,-500.0,0.000202,2]
[330623904,1719639048501,-500.0,0.000202,2]
[330623905,1719639048512,-500.0,0.000202,2]
[330623906,1719639048522,-500.0,0.000202,2]
[330623907,1719639048531,-500.0,0.000202,2]
[330623908,1719639048541,-500.0,0.000202,2]
[330623909,1719639048550,-500.0,0.000202,2]
[330623910,1719639048559,-500.0,0.000202,2]
[330623911,1719639048568,-500.0,0.000202,2]
[330623912,1719639048578,-500.0,0.000202,2]
[330623913,1719639048587,-500.0,0.000202,2]
[330623914,1719639048596,-500.0,0.000202,2]
[330623915,1719639048606,-500.0,0.000202,2]
[330623916,1719639048615,-500.0,0.000202,2]
[330623917,1719639048626,-500.0,0.000202,2]
[330623918,1719639048635,-500.0,0.000202,2]
[330623919,1719639048644,-500.0,0.000202,2]
[330623920,1719639048653,-500.0,0.000202,2]
[330623921,1719639048663,-500.0,0.000202,2]
[330623922,1719639048672,-500.0,0.000202,2]
[330623923,1719639048682,-500.0,0.000202,2]
[330623924,1719639048691,-500.0,0.000202,2]
[330623925,1719639048700,-500.0,0.000202,2]